fUSD/lending_fUSD_20250708
["ID","MTS","AMOUNT","RATE_DAILY","PERIOD"]
[370359789,1751979054915,-11716.88,0.00024759,2]
[370359790,1751979054925,-3077.94,0.00024759,2]
[370359791,1751979054934,-573.6,0.00024759,2]
[370359792,1751979054943,-3024.7,0.00024759,2]
[370359793,1751979054953,-1461.46,0.00024759,2]
[370359794,1751979054963,-1343.51,0.00024759,2]
[370359795,1751979054973,-1373.79,0.00024759,2]
[370359796,1751979054982,-2015.02,0.00024759,2]
[370359797,1751979054991,-1237.54,0.00024759,2]
[370359798,1751979055000,-749.74,0.00024759,2]
[370359799,1751979055010,-460.0,0.0002476,2]
[370359800,1751979055019,-498.95897223,0.0002476,2]
[370359801,1751979055028,-460.0,0.0002476,2]
[370359802,1751979055038,-530.54561515,0.0002476,2]
[370359803,1751979055048,-444.79507351,0.0002476,2]
[370359804,1751979055057,-461.18865583,0.0002476,2]
[370359805,1751979055068,-460.0,0.0002476,2]
[370359806,1751979055077,-520.0,0.0002476,2]
[370359807,1751979055086,-460.0,0.0002476,2]
[370359808,1751979055096,-460.0,0.0002476,2]
[370359809,1751979055105,-460.0,0.0002476,2]
[370359810,1751979055114,-460.0,0.0002476,2]
[370359811,1751979055123,-460.0,0.0002476,2]
[370359812,1751979055132,-495.28976751,0.0002476,2]
[370359813,1751979055142,-460.0,0.0002476,2]
[370359814,1751979055151,-520.69517101,0.0002476,2]
[370359815,1751979055160,-460.0,0.0002476,2]
[370359816,1751979055169,-460.0,0.0002476,2]
[370359817,1751979055178,-460.0,0.0002476,2]
[370359818,1751979055187,-496.04334097,0.0002476,2]
[370359819,1751979055197,-460.0,0.0002476,2]
[370359820,1751979055206,-460.0,0.0002476,2]
[370359821,1751979055215,-460.0,0.0002476,2]
[370359822,1751979055224,-493.67154764,0.0002476,2]
[370359823,1751979055234,-460.0,0.0002476,2]
[370359824,1751979055243,-460.0,0.0002476,2]
[370359825,1751979055252,-189.77494565,0.0002476,2]
[370359826,1751979055262,-460.0,0.0002476,2]
[370359827,1751979055271,-460.0,0.0002476,2]
[370359828,1751979055280,-439.34228137,0.0002476,2]
[370359829,1751979055289,-460.0,0.0002476,2]
[370359830,1751979055299,-460.0,0.0002476,2]
[370359831,1751979055309,-542.6490544,0.0002476,2]
[370359832,1751979055318,-561.52217887,0.0002476,2]
[370359833,1751979055327,-544.33061291,0.0002476,2]
[370359834,1751979055337,-560.05045181,0.0002476,2]
[370359835,1751979055346,-460.0,0.0002476,2]
[370359836,1751979055355,-460.0,0.0002476,2]
[370359837,1751979055365,-460.0,0.0002476,2]
[370359838,1751979055374,-571.15032153,0.0002476,2]
[370359839,1751979055384,-460.0,0.0002476,2]
[370359840,1751979055393,-460.0,0.0002476,2]
[370359841,1751979055406,-460.0,0.0002476,2]
[370359842,1751979055415,-460.0,0.0002476,2]
[370359843,1751979055424,-460.0,0.0002476,2]
[370359844,1751979055434,-408.25618747,0.0002476,2]
[370359845,1751979055444,-460.0,0.0002476,2]
[370359846,1751979055453,-460.0,0.0002476,2]
[370359847,1751979055463,-460.0,0.0002476,2]
[370359848,1751979055472,-460.0,0.0002476,2]
[370359849,1751979055483,-460.0,0.0002476,2]
[370359850,1751979055492,-491.38652766,0.0002476,2]
[370359851,1751979055501,-490.0,0.0002476,2]
[370359852,1751979055511,-460.0,0.0002476,2]
[370359853,1751979055520,-460.0,0.0002476,2]
[370359854,1751979055529,-460.0,0.0002476,2]
[370359855,1751979055538,-460.0,0.0002476,2]
[370359856,1751979055548,-460.0,0.0002476,2]
[370359857,1751979055558,-491.65065938,0.0002476,2]
[370359858,1751979055568,-460.0,0.0002476,2]
[370359859,1751979055577,-460.0,0.0002476,2]
[370359860,1751979055587,-460.0,0.0002476,2]
[370359861,1751979055596,-460.0,0.0002476,2]
[370359862,1751979055606,-460.0,0.0002476,2]
[370359863,1751979055615,-490.0,0.0002476,2]
[370359864,1751979055625,-460.0,0.0002476,2]
[370359865,1751979055635,-460.0,0.0002476,2]
[370359866,1751979055644,-597.60751331,0.0002476,2]
[370359867,1751979055654,-499.04856219,0.0002476,2]
[370359868,1751979055663,-461.32898321,0.0002476,2]
[370359869,1751979055673,-460.76230778,0.0002476,2]
[370359870,1751979055682,-460.0,0.0002476,2]
[370359871,1751979055692,-460.0,0.0002476,2]
[370359872,1751979055701,-460.0,0.0002476,2]
[370359873,1751979055711,-460.0,0.0002476,2]
[370359874,1751979055721,-493.93010283,0.0002476,2]
[370359875,1751979055730,-460.0,0.0002476,2]
[370359876,1751979055739,-460.71161072,0.0002476,2]
[370359877,1751979055750,-460.0,0.0002476,2]
[370359878,1751979055760,-460.0,0.0002476,2]
[370359879,1751979055769,-460.0,0.0002476,2]
[370359880,1751979055779,-460.65680374,0.0002476,2]
[370359881,1751979055788,-460.68339662,0.0002476,2]
[370359882,1751979055797,-460.0,0.0002476,2]
[370359883,1751979055807,-460.82046697,0.0002476,2]
[370359884,1751979055816,-460.0,0.0002476,2]
[370359885,1751979055825,-460.0,0.0002476,2]
[370359886,1751979055835,-440.62365508,0.0002476,2]
[370359887,1751979055845,-460.38266905,0.0002476,2]
[370359888,1751979055854,-460.0,0.0002476,2]
[370359889,1751979055863,-460.0,0.0002476,2]
[370359890,1751979055873,-460.0,0.0002476,2]
[370359891,1751979055883,-460.0,0.0002476,2]
[370359892,1751979055892,-639.45,0.0002476,2]
[370359893,1751979055901,-460.0,0.0002476,2]
[370359894,1751979055911,-460.0,0.0002476,2]
[370359895,1751979055920,-605.42,0.0002476,2]
[370359896,1751979055929,-917.65,0.0002476,2]
[370359897,1751979055939,-1128.64,0.0002476,2]
[370359898,1751979055948,-460.0,0.0002476,2]
[370359899,1751979055958,-1130.03,0.0002476,2]
[370359900,1751979055967,-678.27,0.0002476,2]
[370359901,1751979055976,-1331.24,0.0002476,2]
[370359902,1751979055985,-460.0,0.0002476,2]
[370359903,1751979055994,-460.0,0.0002476,2]
[370359904,1751979056003,-1492.58,0.0002476,2]
[370359905,1751979056012,-460.0,0.0002476,2]
[370359906,1751979056022,-1129.47,0.0002476,2]
[370359907,1751979056031,-1254.73,0.0002476,2]
[370359908,1751979056040,-460.0,0.0002476,2]
[370359909,1751979056050,-847.78,0.0002476,2]
[370359910,1751979056059,-460.0,0.0002476,2]
[370359911,1751979056069,-1711.84,0.0002476,2]
[370359912,1751979056079,-1249.75,0.0002476,2]
[370359913,1751979056088,-1467.32,0.0002476,2]
[370359914,1751979056097,-500.0,0.0002476,2]
[370359915,1751979056107,-819.62,0.0002476,2]
[370359916,1751979056116,-1308.12,0.0002476,2]
[370359917,1751979056126,-1257.45,0.0002476,2]
[370359918,1751979056136,-1315.41,0.0002476,2]
[370359919,1751979056145,-460.0,0.0002476,2]
[370359920,1751979056155,-498.17,0.0002476,2]
[370359921,1751979056163,-460.0,0.0002476,2]
[370359922,1751979056174,-574.18,0.0002476,2]
[370359923,1751979056184,-460.0,0.0002476,2]
[370359924,1751979056194,-460.43384134,0.0002476,2]
[370359925,1751979056203,-460.0,0.0002476,2]
[370359926,1751979056212,-460.0,0.0002476,2]
[370359927,1751979056221,-976.98,0.0002476,2]
[370359928,1751979056231,-563.05,0.0002476,2]
[370359929,1751979056240,-500.0,0.0002476,2]
[370359930,1751979056250,-477.04,0.0002476,2]
[370359931,1751979056260,-460.0,0.0002476,2]
[370359932,1751979056269,-460.0,0.0002476,2]
[370359933,1751979056280,-1409.15,0.0002476,2]
[370359934,1751979056290,-460.0,0.0002476,2]
[370359935,1751979056300,-460.0,0.0002476,2]
[370359936,1751979056310,-460.0,0.0002476,2]
[370359937,1751979056319,-460.0,0.0002476,2]
[370359938,1751979056328,-460.0,0.0002476,2]
[370359939,1751979056337,-1084.3,0.0002476,2]
[370359940,1751979056346,-1136.26,0.0002476,2]
[370359941,1751979056356,-460.0,0.0002476,2]
[370359942,1751979056365,-807.81,0.0002476,2]
[370359943,1751979056374,-538.3,0.0002476,2]
[370359944,1751979056383,-500.72,0.0002476,2]
[370359945,1751979056393,-460.0,0.0002476,2]
[370359946,1751979056403,-979.87,0.0002476,2]
[370359947,1751979056414,-460.0,0.0002476,2]
[370359948,1751979056423,-638.89,0.0002476,2]
[370359949,1751979056432,-776.66,0.0002476,2]
[370359950,1751979056442,-471.9,0.0002476,2]
[370359951,1751979056453,-500.0,0.0002476,2]
[370359952,1751979056463,-537.34,0.0002476,2]
[370359953,1751979056472,-620.14,0.0002476,2]
[370359954,1751979056481,-460.0,0.0002476,2]
[370359955,1751979056489,-706.76,0.0002476,2]
[370359956,1751979056499,-460.0,0.0002476,2]
[370359957,1751979056510,-632.7,0.0002476,2]
[370359958,1751979056520,-1632.13,0.0002476,2]
[370359959,1751979056528,-460.0,0.0002476,2]
[370359960,1751979056537,-460.0,0.0002476,2]
[370359961,1751979056548,-542.38,0.0002476,2]
[370359962,1751979056557,-1093.64,0.0002476,2]
[370359963,1751979056567,-570.07,0.0002476,2]
[370359964,1751979056577,-1201.93,0.0002476,2]
[370359965,1751979056588,-1278.17,0.0002476,2]
[370359966,1751979056598,-952.43,0.0002476,2]
[370359967,1751979056609,-754.87,0.0002476,2]
[370359968,1751979056619,-678.68,0.0002476,2]
[370359969,1751979056629,-460.0,0.0002476,2]
[370359970,1751979056638,-922.21,0.0002476,2]
[370359971,1751979056648,-460.0,0.0002476,2]
[370359972,1751979056658,-1623.57,0.0002476,2]
[370359973,1751979056667,-772.02,0.0002476,2]
[370359974,1751979056678,-1722.87,0.0002476,2]
[370359975,1751979056687,-1171.07,0.0002476,2]
[370359976,1751979056697,-1400.92,0.0002476,2]
[370359977,1751979056707,-1672.16,0.0002476,2]
[370359978,1751979056716,-1091.56,0.0002476,2]
[370359979,1751979056725,-500.0,0.00024761,2]
[370359980,1751979056735,-500.0,0.00024761,2]
[370359981,1751979056744,-500.0,0.00024761,2]
[370359982,1751979056753,-500.0,0.00024761,2]
[370359983,1751979056763,-500.0,0.00024761,2]
[370359984,1751979056772,-500.0,0.00024761,2]
[370359985,1751979056782,-500.0,0.00024761,2]
[370359986,1751979056791,-460.0,0.00024762,2]
[370359987,1751979056801,-460.0,0.00024762,2]
[370359988,1751979056811,-460.0,0.00024762,2]
[370359989,1751979056820,-460.0,0.00024762,2]
[370359990,1751979056829,-460.0,0.00024762,2]
[370359991,1751979056839,-507.68,0.00024762,2]
[370359992,1751979056848,-460.0,0.00024762,2]
[370359993,1751979056858,-460.0,0.00024762,2]
[370359994,1751979056867,-460.0,0.00024762,2]
[370359995,1751979056876,-460.0,0.00024762,2]
[370359996,1751979056886,-460.0,0.00024762,2]
[370359997,1751979056896,-460.0,0.00024762,2]
[370359998,1751979056905,-460.0,0.00024762,2]
[370359999,1751979057108,-460.0,0.00024762,2]
[370360000,1751979057118,-460.0,0.00024762,2]
[370360001,1751979057128,-460.0,0.00024762,2]
[370360002,1751979057137,-460.0,0.00024762,2]
[370360003,1751979057146,-460.0,0.00024762,2]
[370360004,1751979057156,-460.0,0.00024762,2]
[370360005,1751979057165,-460.0,0.00024762,2]
[370360006,1751979057174,-460.0,0.00024762,2]
[370360007,1751979057184,-460.0,0.00024762,2]
[370360008,1751979057194,-460.0,0.00024762,2]
[370360009,1751979057203,-460.0,0.00024762,2]
[370360010,1751979057214,-460.0,0.00024762,2]
[370360011,1751979057223,-495.87,0.00024762,2]
[370360012,1751979057232,-500.0,0.00024762,2]
[370360013,1751979057242,-481.85568252,0.00024762,2]
[370360014,1751979057251,-460.0,0.00024762,2]
[370360015,1751979057260,-460.0,0.00024762,2]
[370360016,1751979057270,-460.0,0.00024762,2]
[370360017,1751979057279,-460.0,0.00024762,2]
[370360018,1751979057288,-460.0,0.00024762,2]
[370360019,1751979057299,-460.0,0.00024762,2]
[370360020,1751979057308,-533.79,0.00024762,2]
[370360021,1751979057317,-460.0,0.00024762,2]
[370360022,1751979057326,-460.0,0.00024762,2]
[370360023,1751979057336,-460.0,0.00024762,2]
[370360024,1751979057346,-460.0,0.00024762,2]
[370360025,1751979057356,-460.0,0.00024762,2]
[370360026,1751979057367,-460.0,0.00024762,2]
[370360027,1751979057378,-762.45,0.00024762,2]
[370360028,1751979057388,-697.22,0.00024762,2]
[370360029,1751979057399,-460.0,0.00024762,2]
[370360030,1751979057413,-460.0,0.00024762,2]
[370360031,1751979057422,-460.0,0.00024762,2]
[370360032,1751979057431,-460.0,0.00024762,2]
[370360033,1751979057441,-460.0,0.00024762,2]
[370360034,1751979057450,-633.66,0.00024762,2]
[370360035,1751979057460,-547.02,0.00024762,2]
[370360036,1751979057468,-461.1434003,0.00024762,2]
[370360037,1751979057477,-460.0,0.00024762,2]
[370360038,1751979057487,-460.0,0.00024762,2]
[370360039,1751979057497,-460.0,0.00024762,2]
[370360040,1751979057506,-460.0,0.00024762,2]
[370360041,1751979057516,-466.69,0.00024762,2]
[370360042,1751979057525,-460.0,0.00024762,2]
[370360043,1751979057535,-460.0,0.00024762,2]
[370360044,1751979057546,-460.0,0.00024762,2]
[370360045,1751979057555,-460.0,0.00024762,2]
[370360046,1751979057564,-460.0,0.00024762,2]
[370360047,1751979057573,-460.0,0.00024762,2]
[370360048,1751979057582,-498.12,0.00024762,2]
[370360049,1751979057591,-460.0,0.00024762,2]
[370360050,1751979057601,-460.0,0.00024762,2]
[370360051,1751979057610,-460.0,0.00024762,2]
[370360052,1751979057619,-500.0,0.00024762,2]
[370360053,1751979057628,-460.0,0.00024762,2]
[370360054,1751979057637,-460.0,0.00024762,2]
[370360055,1751979057646,-460.0,0.00024762,2]
[370360056,1751979057656,-460.0,0.00024762,2]
[370360057,1751979057665,-515.62,0.00024762,2]
[370360058,1751979057674,-581.47,0.00024762,2]
[370360059,1751979057683,-460.0,0.00024762,2]
[370360060,1751979057693,-460.0,0.00024762,2]
[370360061,1751979057702,-460.0,0.00024762,2]
[370360062,1751979057711,-460.0,0.00024762,2]
[370360063,1751979057721,-385.80604448,0.00024762,2]
[370360064,1751979057731,-848.91,0.00024762,2]
[370360065,1751979057741,-640.33,0.00024762,2]
[370360066,1751979057750,-460.0,0.00024762,2]
[370360067,1751979057760,-460.0,0.00024762,2]
[370360068,1751979057771,-460.0,0.00024762,2]
[370360069,1751979057780,-460.0,0.00024762,2]
[370360070,1751979057790,-524.53,0.00024762,2]
[370360071,1751979057802,-460.0,0.00024762,2]
[370360072,1751979057811,-460.0,0.00024762,2]
[370360073,1751979057820,-460.0,0.00024762,2]
[370360074,1751979057830,-460.0,0.00024762,2]
[370360075,1751979057840,-460.0,0.00024762,2]
[370360076,1751979057849,-477.18,0.00024762,2]
[370360077,1751979057859,-460.0,0.00024762,2]
[370360078,1751979057869,-460.0,0.00024762,2]
[370360079,1751979057879,-460.0,0.00024762,2]
[370360080,1751979057888,-460.0,0.00024762,2]
[370360081,1751979057898,-460.0,0.00024762,2]
[370360082,1751979057907,-460.0,0.00024762,2]
[370360083,1751979057917,-460.0,0.00024762,2]
[370360084,1751979057927,-554.86572742,0.00024762,2]
[370360085,1751979057936,-460.0,0.00024762,2]
[370360086,1751979057946,-460.0,0.00024762,2]
[370360087,1751979057955,-460.0,0.00024762,2]
[370360088,1751979057966,-460.0,0.00024762,2]
[370360089,1751979057975,-460.0,0.00024762,2]
[370360090,1751979057986,-460.0,0.00024762,2]
[370360091,1751979057996,-460.0,0.00024762,2]
[370360092,1751979058005,-637.81,0.00024762,2]
[370360093,1751979058015,-460.0,0.00024762,2]
[370360094,1751979058024,-460.0,0.00024762,2]
[370360095,1751979058033,-500.0,0.00024762,2]
[370360096,1751979058043,-460.0,0.00024762,2]
[370360097,1751979058053,-460.0,0.00024762,2]
[370360098,1751979058062,-460.0,0.00024762,2]
[370360099,1751979058071,-1045.57,0.00024762,2]
[370360100,1751979058081,-460.0,0.00024762,2]
[370360101,1751979058090,-460.0,0.00024762,2]
[370360102,1751979058098,-460.0,0.00024762,2]
[370360103,1751979058107,-615.42,0.00024762,2]
[370360104,1751979058116,-460.0,0.00024762,2]
[370360105,1751979058126,-460.0,0.00024762,2]
[370360106,1751979058135,-460.0,0.00024762,2]
[370360107,1751979058144,-460.0,0.00024762,2]
[370360108,1751979058154,-460.0,0.00024762,2]
[370360109,1751979058163,-538.23,0.00024762,2]
[370360110,1751979058172,-460.0,0.00024762,2]
[370360111,1751979058182,-460.0,0.00024762,2]
[370360112,1751979058191,-300.0,0.00024762,2]
[370360113,1751979058200,-460.0,0.00024762,2]
[370360114,1751979058209,-460.0,0.00024762,2]
[370360115,1751979058218,-460.0,0.00024762,2]
[370360116,1751979058228,-998.1,0.00024762,2]
[370360117,1751979058237,-460.0,0.00024762,2]
[370360118,1751979058246,-460.0,0.00024762,2]
[370360119,1751979058256,-495.3,0.00024762,2]
[370360120,1751979058265,-716.54,0.00024762,2]
[370360121,1751979058274,-460.0,0.00024762,2]
[370360122,1751979058283,-460.0,0.00024762,2]
[370360123,1751979058292,-460.0,0.00024762,2]
[370360124,1751979058303,-552.0,0.00024762,2]
[370360125,1751979058312,-460.0,0.00024762,2]
[370360126,1751979058331,-460.0,0.00024762,2]
[370360127,1751979058347,-460.0,0.00024762,2]
[370360128,1751979058366,-460.0,0.00024762,2]
[370360129,1751979058385,-640.84,0.00024762,2]
[370360130,1751979058400,-500.0,0.00024762,2]
[370360131,1751979058420,-530.2,0.00024762,2]
[370360132,1751979058439,-460.0,0.00024762,2]
[370360133,1751979058460,-460.0,0.00024762,2]
[370360134,1751979058478,-460.0,0.00024762,2]
[370360135,1751979058497,-410.49920279,0.00024762,2]
[370360136,1751979058514,-460.0,0.00024762,2]
[370360137,1751979058529,-460.0,0.00024762,2]
[370360138,1751979058548,-460.0,0.00024762,2]
[370360139,1751979058560,-460.0,0.00024762,2]
[370360140,1751979058578,-482.32,0.00024762,2]
[370360141,1751979058591,-555.14,0.00024762,2]
[370360142,1751979058606,-470.41,0.00024762,2]
[370360143,1751979058621,-468.69,0.00024762,2]
[370360144,1751979058636,-460.0,0.00024762,2]
[370360145,1751979058651,-663.92,0.00024762,2]
[370360146,1751979058667,-464.35,0.00024762,2]
[370360147,1751979058690,-460.0,0.00024762,2]
[370360148,1751979058705,-460.0,0.00024762,2]
[370360149,1751979058721,-460.0,0.00024762,2]
[370360150,1751979058735,-460.0,0.00024762,2]
[370360151,1751979058751,-460.0,0.00024762,2]
[370360152,1751979058766,-460.0,0.00024762,2]
[370360153,1751979058782,-500.0,0.00024762,2]
[370360154,1751979058797,-520.41,0.00024762,2]
[370360155,1751979058812,-460.0,0.00024762,2]
[370360156,1751979058828,-460.0,0.00024762,2]
[370360157,1751979058843,-460.0,0.00024762,2]
[370360158,1751979058860,-460.0,0.00024762,2]
[370360159,1751979058875,-460.0,0.00024762,2]
[370360160,1751979058890,-517.58,0.00024762,2]
[370360161,1751979058906,-460.0,0.00024762,2]
[370360162,1751979058922,-460.0,0.00024762,2]
[370360163,1751979058937,-460.0,0.00024762,2]
[370360164,1751979058953,-460.0,0.00024762,2]
[370360165,1751979058968,-460.0,0.00024762,2]
[370360166,1751979058983,-547.21,0.00024762,2]
[370360167,1751979058998,-536.73147581,0.00024762,2]
[370360168,1751979059014,-522.19,0.00024762,2]
[370360169,1751979059029,-460.0,0.00024762,2]
[370360170,1751979059045,-733.74,0.00024762,2]
[370360171,1751979059059,-550.02,0.00024762,2]
[370360172,1751979059074,-460.0,0.00024762,2]
[370360173,1751979059089,-696.83,0.00024762,2]
[370360174,1751979059104,-460.0,0.00024762,2]
[370360175,1751979059120,-346.16522076,0.00024762,2]
[370360176,1751979059135,-460.0,0.00024762,2]
[370360177,1751979059153,-460.0,0.00024762,2]
[370360178,1751979059168,-460.0,0.00024762,2]
[370360179,1751979059183,-460.0,0.00024762,2]
[370360180,1751979059199,-460.0,0.00024762,2]
[370360181,1751979059214,-460.0,0.00024762,2]
[370360182,1751979059229,-460.0,0.00024762,2]
[370360183,1751979059244,-460.0,0.00024762,2]
[370360184,1751979059260,-460.0,0.00024762,2]
[370360185,1751979059274,-994.51,0.00024762,2]
[370360186,1751979059291,-460.0,0.00024762,2]
[370360187,1751979059308,-524.82,0.00024762,2]
[370360188,1751979059324,-460.0,0.00024762,2]
[370360189,1751979059339,-460.0,0.00024762,2]
[370360190,1751979059353,-460.0,0.00024762,2]
[370360191,1751979059369,-460.0,0.00024762,2]
[370360192,1751979059387,-335.13133772,0.00024762,2]
[370360193,1751979059402,-460.0,0.00024762,2]
[370360194,1751979059419,-531.69,0.00024762,2]
[370360195,1751979059434,-460.0,0.00024762,2]
[370360196,1751979059449,-680.28,0.00024762,2]
[370360197,1751979059464,-460.0,0.00024762,2]
[370360198,1751979059479,-460.0,0.00024762,2]
[370360199,1751979059494,-460.0,0.00024762,2]
[370360200,1751979059509,-460.0,0.00024762,2]
[370360201,1751979059524,-460.0,0.00024762,2]
[370360202,1751979059539,-460.0,0.00024762,2]
[370360203,1751979059555,-500.0,0.00024762,2]
[370360204,1751979059570,-460.0,0.00024762,2]
[370360205,1751979059587,-460.0,0.00024762,2]
[370360206,1751979059602,-460.0,0.00024762,2]
[370360207,1751979059618,-460.0,0.00024762,2]
[370360208,1751979059633,-460.0,0.00024762,2]
[370360209,1751979059648,-460.44,0.00024762,2]
[370360210,1751979059663,-460.0,0.00024762,2]
[370360211,1751979059680,-460.0,0.00024762,2]
[370360212,1751979059695,-460.0,0.00024762,2]
[370360213,1751979059710,-460.0,0.00024762,2]
[370360214,1751979059725,-460.0,0.00024762,2]
[370360215,1751979059741,-460.0,0.00024762,2]
[370360216,1751979059756,-460.0,0.00024762,2]
[370360217,1751979059771,-460.0,0.00024762,2]
[370360218,1751979059786,-460.0,0.00024762,2]
[370360219,1751979059803,-460.0,0.00024762,2]
[370360220,1751979059818,-561.7420028,0.00024762,2]
[370360221,1751979059834,-460.0,0.00024762,2]
[370360222,1751979059849,-460.0,0.00024762,2]
[370360223,1751979059865,-516.54,0.00024762,2]
[370360224,1751979059880,-460.0,0.00024762,2]
[370360225,1751979059895,-494.03604869,0.00024762,2]
[370360226,1751979059910,-497.98,0.00024762,2]
[370360227,1751979059924,-746.66,0.00024762,2]
[370360228,1751979059939,-460.0,0.00024762,2]
[370360229,1751979059955,-716.01,0.00024762,2]
[370360230,1751979059971,-460.0,0.00024762,2]
[370360231,1751979059980,-460.0,0.00024762,2]
[370360232,1751979059990,-460.0,0.00024762,2]
[370360233,1751979059999,-460.0,0.00024762,2]
[370360234,1751979060008,-460.0,0.00024762,2]
[370360235,1751979060018,-460.0,0.00024762,2]
[370360236,1751979060028,-460.0,0.00024762,2]
[370360237,1751979060037,-460.0,0.00024762,2]
[370360238,1751979060047,-460.0,0.00024762,2]
[370360239,1751979060057,-460.0,0.00024762,2]
[370360240,1751979060067,-460.0,0.00024762,2]
[370360241,1751979060077,-653.29,0.00024762,2]
[370360242,1751979060086,-460.0,0.00024762,2]
[370360243,1751979060096,-460.0,0.00024762,2]
[370360244,1751979060105,-247.87471951,0.00024762,2]
[370360245,1751979060115,-460.0,0.00024762,2]
[370360246,1751979060125,-460.0,0.00024762,2]
[370360247,1751979060135,-522.32,0.00024762,2]
[370360248,1751979060144,-460.0,0.00024762,2]
[370360249,1751979060153,-460.0,0.00024762,2]
[370360250,1751979060163,-460.0,0.00024762,2]
[370360251,1751979060172,-460.0,0.00024762,2]
[370360252,1751979060182,-460.0,0.00024762,2]
[370360253,1751979060629,-645.68,0.00024762,2]
[370360254,1751979060669,-460.0,0.00024762,2]
[370360255,1751979060688,-681.99,0.00024762,2]
[370360256,1751979060703,-460.0,0.00024762,2]
[370360257,1751979060712,-460.0,0.00024762,2]
[370360258,1751979060722,-460.0,0.00024762,2]
[370360259,1751979060731,-460.0,0.00024762,2]
[370360260,1751979060740,-1073.14,0.00024762,2]
[370360261,1751979060750,-460.0,0.00024762,2]
[370360262,1751979060759,-460.0,0.00024762,2]
[370360263,1751979060768,-460.0,0.00024762,2]
[370360264,1751979060777,-460.0,0.00024762,2]
[370360265,1751979060787,-5022.63776518,0.00024762,2]
[370360266,1751979060797,-460.0,0.00024762,2]
[370360267,1751979060806,-460.0,0.00024762,2]
[370360268,1751979060816,-637.93,0.00024762,2]
[370360269,1751979060826,-460.0,0.00024762,2]
[370360270,1751979060835,-460.0,0.00024762,2]
[370360271,1751979060844,-460.0,0.00024762,2]
[370360272,1751979060853,-460.0,0.00024762,2]
[370360273,1751979060862,-623.6,0.00024762,2]
[370360274,1751979060872,-400.81031954,0.00024769,2]
[370360275,1751979060881,-460.0,0.00024769,2]
[370360276,1751979060891,-460.0,0.00024769,2]
[370360277,1751979060900,-460.0,0.00024769,2]
[370360278,1751979060909,-460.0,0.00024769,2]
[370360279,1751979060919,-460.0,0.00024769,2]
[370360280,1751979060928,-460.0,0.00024769,2]
[370360281,1751979060941,-460.0,0.00024769,2]
[370360282,1751979060951,-460.0,0.00024769,2]
[370360283,1751979060960,-460.0,0.00024769,2]
[370360284,1751979060969,-460.0,0.00024769,2]
[370360285,1751979060978,-460.0,0.00024769,2]
[370360286,1751979060988,-460.0,0.00024769,2]
[370360287,1751979060997,-460.0,0.00024769,2]
[370360288,1751979061006,-460.0,0.00024769,2]